bitfinex/quotes_ETHUSD_20250725
["timestamp","ask_amount","ask_price","bid_price","bid_amount"]
[1753438732069,1.4541,3720.7,3720.6,2.68773853]
[1753438732268,1.4541,3720.7,3720.4,4.422]
[1753438732480,1.4541,3720.6,3719.9,2.68817274]
[1753438732700,4.4541,3720.6,3720.0,2.6881109]
[1753438732980,3.00000001,3720.8,3719.8,7.10928583]
[1753438732981,3.0,3720.3,3719.8,4.421]
[1753438733181,1.3072,3720.5,3719.8,4.421]
[1753438733381,1.4541,3720.2,3719.8,4.421]
[1753438733570,1.4541,3720.1,3719.8,7.1093059]
[1753438733776,1.4541,3720.0,3719.9,2.68820823]
[1753438734753,1.4541,3720.0,3719.7,2.68838884]
[1753438734954,1.4541,3719.9,3719.8,4.42]
[1753438735286,1.4541,3719.9,3719.8,7.10831657]
[1753438735468,0.9956,3720.2,3720.1,2.68809978]
[1753438735665,1.4541,3720.2,3720.1,2.68809978]
[1753438738492,1.4541,3720.2,3720.0,4.417]
[1753438738685,1.3072,3720.5,3720.0,4.417]
[1753438738686,1.4541,3720.1,3720.0,4.417]
[1753438738874,1.4541,3720.1,3719.9,7.10423461]
[1753438739073,1.4541,3720.0,3719.4,6.456]
[1753438739384,1.4541,3719.9,3719.8,2.68831463]
[1753438739755,1.4541,3719.9,3719.8,7.10431463]
[1753438740202,1.4541,3719.9,3719.8,4.416]
[1753438741084,1.4541,3719.9,3719.8,7.10431657]
[1753438741403,0.9956,3719.9,3719.8,7.10431657]
[1753438741906,1.4541,3719.9,3719.8,7.10431657]
[1753438742311,1.4541,3719.9,3719.8,4.416]
[1753438742473,1.4541,3719.9,3719.8,2.68831657]
[1753438742797,1.4541,3719.9,3719.8,4.414]
[1753438742967,2.7925,3719.9,3719.8,4.414]
[1753438743796,2.7925,3719.9,3719.5,7.23593029]
[1753438743993,1.4541,3719.8,3719.5,7.23593029]
[1753438744193,1.3384,3719.9,3719.5,7.23593029]
[1753438744391,1.4541,3719.7,3719.5,7.23593029]
[1753438744599,0.9956,3719.6,3719.5,7.23593029]
[1753438746110,1.4541,3719.6,3719.5,7.23593029]
[1753438748611,1.3384,3719.9,3719.7,2.68837021]
[1753438748820,0.1344,3720.0,3719.8,2.68825416]
[1753438749014,0.4545,3719.8,3719.7,4.411]
[1753438749506,1.4649,3719.8,3719.7,4.411]
[1753438750301,1.4649,3719.8,3719.5,2.82292888]
[1753438750481,1.0104,3719.7,3719.6,2.68845726]
[1753438751512,1.0104,3719.7,3719.6,2.68845726]
[1753438752214,1.0104,3719.7,3719.6,2.68846112]
[1753438752582,1.0104,3719.7,3719.5,4.5434]
[1753438752779,1.0104,3719.6,3719.5,7.23188395]
[1753438754520,1.4649,3719.6,3719.5,0.1344]
[1753438754683,1.2253,3719.5,3718.6,0.19927837]
[1753438754889,1.2253,3719.3,3718.6,0.19927837]
[1753438755232,4.405,3719.2,3718.6,0.19927837]
[1753438755433,0.1344,3718.8,3718.6,2.88840831]
[1753438755786,1.4649,3718.7,3718.6,2.68912994]
[1753438756090,1.4649,3718.7,3718.5,2.68922945]
[1753438756288,0.4545,3718.7,3718.6,2.6891841]
[1753438756714,0.4545,3718.7,3718.3,2.82378635]
[1753438756920,0.1344,3718.8,3718.5,2.68922844]
[1753438757226,1.4649,3718.6,3718.5,2.68922844]
[1753438758020,1.4649,3718.6,3718.3,2.82377972]
[1753438758213,0.4545,3718.6,3718.5,2.68925642]
[1753438758590,0.4545,3718.6,3718.4,2.68930678]
[1753438758816,0.4545,3718.6,3718.5,2.68925642]
[1753438759222,0.4545,3718.6,3718.4,2.68929902]
[1753438759430,1.0104,3718.5,3718.4,2.68932874]
[1753438761323,1.4649,3718.5,3718.4,2.68932874]
[1753438762927,2.6722,3718.5,3718.4,2.68932874]
[1753438763230,2.6722,3718.5,3718.2,2.68946148]
[1753438763399,1.4649,3718.4,3718.2,7.22286148]
[1753438763593,1.2073,3718.5,3718.2,7.22286148]
[1753438763594,1.4649,3718.3,3718.2,7.22286148]
[1753438763898,1.4649,3718.3,3718.2,2.82386148]
[1753438764527,1.4649,3718.3,3718.1,2.68952125]
[1753438764693,1.3417,3718.5,3718.1,2.68952125]
[1753438764893,1.4649,3718.4,3718.1,2.68952125]
[1753438765129,1.4649,3718.3,3718.0,2.82401191]
[1753438765332,4.4649,3718.2,3717.9,0.001]
[1753438765493,1.4649,3718.2,3717.9,0.001]
[1753438765698,4.15448831,3718.1,3717.9,0.001]
[1753438766093,4.4649,3718.0,3717.9,0.001]
[1753438766408,1.4649,3718.0,3717.9,0.001]
[1753438766625,5.2219,3718.0,3717.9,0.001]
[1753438766827,5.6764,3718.0,3717.9,0.001]
[1753438767143,8.36601807,3718.0,3717.9,0.001]
[1753438767951,8.50653549,3718.0,3717.9,0.001]
[1753438769155,8.63744848,3718.0,3717.9,0.001]
[1753438770221,13.03244848,3718.0,3717.9,0.001]
[1753438770645,8.63744848,3718.0,3717.9,0.001]
[1753438770823,5.6764,3718.0,3717.9,0.001]
[1753438771025,10.0714,3718.0,3717.9,0.001]
[1753438771736,10.20133227,3718.0,3717.9,0.001]
[1753438771931,10.0714,3718.0,3717.9,0.001]
[1753438772223,7.02199692,3717.2,3717.1,0.001]
[1753438772557,11.41599692,3717.2,3717.1,0.001]
[1753438772935,12.88089692,3717.2,3717.1,0.001]
[1753438775327,13.01529692,3717.2,3717.1,0.001]
[1753438776630,10.3251,3717.2,3717.1,0.001]
[1753438776965,7.391,3717.2,3717.1,0.001]
[1753438777166,0.13077549,3718.0,3717.2,2.69019692]
[1753438777167,0.1344,3717.3,3717.2,2.69019692]
[1753438777468,0.1344,3717.7,3717.6,2.68987899]
[1753438777631,0.1344,3717.7,3717.2,3.04113259]
[1753438777632,3.1344,3717.7,3717.2,3.04113259]
[1753438777964,3.0,3717.5,3717.1,0.001]
[1753438778150,7.08008878,3717.4,3717.1,0.001]
[1753438778338,3.1344,3717.3,3717.1,0.001]
[1753438778542,10.08019692,3717.2,3717.1,0.001]
[1753438778856,11.55179692,3717.2,3717.1,0.001]
[1753438779564,12.86199692,3717.2,3717.1,0.001]
[1753438781067,13.41199692,3717.2,3717.1,0.001]
[1753438782975,13.55256918,3717.2,3717.1,0.001]
[1753438784977,7.52294167,3717.0,3716.9,0.001]
[1753438785147,12.04434167,3717.0,3716.9,0.001]
[1753438785546,13.51594167,3717.0,3716.9,0.001]
[1753438788967,9.12894167,3717.0,3716.9,0.001]
[1753438789172,4.10734167,3717.0,3716.9,0.001]
[1753438789484,11.63191897,3717.0,3716.9,0.001]
[1753438789648,4.24791897,3717.0,3716.9,0.001]
[1753438789849,9.96294167,3717.0,3716.9,0.001]
[1753438790071,12.96294167,3717.0,3716.9,0.001]
[1753438790268,9.96294167,3717.0,3716.9,0.001]
[1753438790482,0.1344,3717.0,3716.9,0.001]
[1753438790683,4.5174,3717.0,3716.9,0.0335]
[1753438790886,7.20774167,3717.0,3716.9,0.001]
[1753438791086,2.69070361,3716.5,3716.4,0.1344]
[1753438791294,5.69077601,3716.4,3716.3,0.001]
[1753438792089,4.382,3716.4,3716.3,0.3012]
[1753438792381,3.0,3716.4,3716.3,0.3012]
[1753438792583,1.43067804,3717.0,3716.4,1.2618]
[1753438792747,0.14057804,3717.0,3716.5,2.69064958]
[1753438792951,4.382,3716.9,3716.6,0.3327]
[1753438793194,4.382,3716.8,3716.6,0.0325]
[1753438793363,3.0,3716.8,3716.7,0.3002]
[1753438793559,3.0,3717.1,3716.7,0.3002]
[1753438793760,0.14056801,3717.3,3716.7,0.3002]
[1753438793964,4.381,3717.2,3716.9,2.69040097]
[1753438794166,4.381,3717.2,3717.0,3.02302467]
[1753438794481,4.381,3717.4,3717.1,4.32940381]
[1753438794660,4.381,3717.4,3717.2,2.69013265]
[1753438794861,4.381,3717.4,3717.2,2.99033265]
[1753438795061,4.381,3717.4,3717.2,2.99037827]
[1753438795390,3.0,3717.3,3717.2,0.3002]
[1753438795898,1.42537549,3718.0,3717.1,1.3065]
[1753438796057,1.42537549,3718.0,3717.2,0.3327]
[1753438796058,0.002,3718.0,3717.2,0.3327]
[1753438796255,0.002,3718.0,3717.3,0.0325]
[1753438796256,4.379,3717.9,3717.3,0.0325]
[1753438796489,3.0,3717.8,3717.1,3.9967609]
[1753438797001,3.0,3717.8,3717.1,1.3065]
[1753438797002,4.0332,3717.8,3717.1,1.3065]
[1753438797162,6.7229739,3717.8,3717.1,1.3065]
[1753438797359,4.379,3717.7,3717.3,2.69012262]
[1753438797816,4.379,3717.7,3717.1,1.3065]
[1753438798099,4.379,3717.7,3717.1,3.99674694]
[1753438799406,4.379,3717.7,3717.2,2.69015027]
[1753438799692,4.379,3717.7,3717.1,1.3065]
[1753438799693,4.379,3717.7,3717.1,3.99674139]
[1753438800194,4.379,3717.7,3717.1,1.3065]
[1753438800404,4.379,3717.7,3717.3,2.69006369]
[1753438800566,4.377,3717.8,3717.3,2.69010303]
[1753438800768,4.377,3717.8,3717.4,0.3002]
[1753438800995,7.377,3717.8,3717.2,2.6901753]
[1753438801305,4.5104,3717.7,3717.4,2.69004567]
[1753438801487,7.5104,3717.7,3717.2,0.1344]
[1753438801688,7.5104,3717.7,3717.3,2.69012455]
[1753438801902,7.5104,3717.7,3717.6,2.68990746]
[1753438802106,3.1344,3717.7,3717.6,2.68990746]
[1753438802596,4.375,3717.9,3717.2,0.4671]
[1753438802894,3.0,3717.8,3717.2,0.1344]
[1753438803083,5.68978607,3717.8,3717.2,0.1344]
[1753438803282,1.1676,3717.7,3717.2,0.1344]
[1753438803602,3.0,3717.5,3716.4,1.3211]
[1753438803785,5.69017463,3717.3,3716.4,4.01186856]
[1753438803963,0.1344,3717.0,3716.5,2.82505007]
[1753438804387,0.1344,3717.0,3716.6,2.69062252]
[1753438805113,0.1344,3717.0,3716.5,2.82508478]
[1753438805316,0.1344,3717.0,3716.5,0.1344]
[1753438805486,3.0,3717.3,3716.9,2.82481405]
[1753438806121,3.0,3717.3,3717.0,2.69033807]
[1753438806613,3.0,3717.3,3717.0,2.69031348]
[1753438806790,3.0,3717.3,3716.9,0.1344]
[1753438806791,0.9933,3717.2,3716.4,1.3211]
[1753438806997,3.1344,3717.1,3716.6,2.82501994]
[1753438807219,0.9933,3717.0,3716.6,2.82501994]
[1753438807886,0.1344,3717.1,3716.6,0.1344]
[1753438808086,0.9933,3717.0,3716.6,0.1344]
[1753438808429,0.9933,3716.9,3716.6,2.82502837]
[1753438809131,3.0,3717.0,3716.8,2.69048643]
[1753438809435,3.0,3717.0,3716.6,2.82500093]
[1753438809634,0.1344,3717.1,3716.6,2.82500093]
[1753438809945,1.1277,3717.1,3716.6,2.82501889]
[1753438810233,1.1277,3717.1,3716.7,2.6905577]
[1753438810808,0.1344,3717.1,3716.6,0.1344]
[1753438811014,4.369,3717.8,3717.4,1.2317]
[1753438811316,3.0,3717.7,3717.4,1.2317]
[1753438811483,3.9933,3717.7,3717.3,2.69011626]
[1753438811696,0.9933,3717.6,3717.3,2.69011626]
[1753438812133,3.0,3717.7,3717.4,2.69004876]
[1753438812809,3.0,3717.7,3717.2,2.69019692]
[1753438813012,1.4488,3717.6,3717.1,1.2317]
[1753438813213,0.9933,3717.5,3717.2,2.69019426]
[1753438813538,0.9933,3717.5,3716.8,1.2125]
[1753438813539,0.9933,3717.4,3716.8,1.2125]
[1753438813744,0.9933,3717.4,3716.9,2.69040935]
[1753438813745,3.9933,3717.4,3716.9,2.69040935]
[1753438814111,0.9933,3717.3,3716.8,3.90295635]
[1753438814342,0.9933,3717.3,3716.9,2.69041366]
[1753438814511,0.9933,3717.2,3716.8,1.2125]
[1753438814717,0.9933,3717.1,3716.8,1.2125]
[1753438814917,0.9933,3717.1,3716.8,3.90291766]
[1753438815135,0.9933,3717.1,3716.9,2.69140631]
[1753438815316,3.0,3717.4,3716.9,2.69135253]
[1753438815501,3.0,3717.4,3717.0,2.69034167]
[1753438815699,4.13898463,3717.3,3716.9,0.001]
[1753438815939,6.99242686,3717.2,3716.9,0.001]
[1753438816229,4.4488,3717.2,3716.9,0.001]
[1753438816433,3.9933,3717.2,3716.9,0.001]
[1753438816629,0.9933,3717.1,3716.9,0.001]
[1753438816829,1.4488,3717.1,3716.9,0.001]
[1753438817136,0.9933,3717.0,3716.9,0.001]
[1753438818033,3.9933,3717.0,3716.9,0.001]
[1753438818530,4.4488,3717.0,3716.9,0.001]
[1753438821145,12.77884167,3717.0,3716.9,0.001]
[1753438824734,8.41484167,3717.0,3716.9,0.001]
[1753438824937,8.3543,3717.0,3716.9,0.001]
[1753438825238,0.1344,3717.1,3716.9,0.001]
[1753438825448,4.361,3717.0,3716.9,0.001]
[1753438826518,4.4954,3717.1,3716.9,0.001]
[1753438826905,5.4887,3717.1,3716.9,0.001]
[1753438827107,0.9933,3717.0,3716.9,0.001]
[1753438827526,4.4954,3717.1,3716.9,0.001]
[1753438827737,0.1344,3717.1,3717.0,2.69034167]
[1753438827905,2.69168155,3718.0,3717.0,2.69034167]
[1753438827906,0.9953,3718.0,3717.0,1.54938653]
[1753438828111,0.1364,3717.9,3717.7,1.2474]
[1753438828341,0.002,3717.9,3717.8,2.68976276]
[1753438828735,0.002,3717.9,3717.8,0.3002]
[1753438828938,0.002,3717.9,3717.8,2.68976276]
[1753438829809,0.002,3717.9,3717.7,1.2474]
[1753438829810,0.9953,3717.9,3717.7,1.2474]
[1753438830010,1.4488,3717.8,3717.2,1.2752]
[1753438830229,1.5832,3717.8,3717.3,2.82452455]
[1753438830444,0.9933,3717.7,3716.9,5.6342]
[1753438830657,0.002,3717.9,3717.1,0.4346]
[1753438830949,0.1344,3717.7,3717.4,2.69002844]
[1753438831305,0.1344,3717.7,3717.3,2.69010343]
[1753438831637,0.1344,3717.7,3717.1,3.12486347]
[1753438831638,1.1277,3717.7,3717.4,2.69000517]
[1753438832032,1.1277,3717.7,3717.2,2.69014242]
[1753438832238,1.1277,3717.7,3717.3,2.69010887]
[1753438832752,0.1344,3717.7,3717.1,0.1344]
[1753438832910,0.002,3717.9,3717.5,2.68996324]
[1753438833116,0.9953,3717.9,3717.5,0.1344]
[1753438833317,0.002,3717.9,3717.5,2.82437394]
[1753438833527,0.9933,3717.8,3717.5,2.82437394]
[1753438833866,0.9933,3717.7,3717.3,2.82447157]
[1753438834055,0.5899,3717.8,3717.3,0.1344]
[1753438834238,0.9933,3717.6,3717.3,2.69010152]
[1753438834441,0.4555,3717.7,3717.2,2.82458579]
[1753438834442,0.9933,3717.5,3717.2,2.82458579]
[1753438835062,0.9933,3717.4,3717.2,0.1344]
[1753438835372,0.9933,3717.4,3717.2,2.82459066]
[1753438836016,0.4555,3717.7,3717.2,0.1344]
[1753438836218,0.1344,3717.5,3716.9,1.4106]
[1753438836417,1.2948,3717.3,3716.9,0.001]
[1753438836656,0.1344,3717.1,3716.9,0.001]
[1753438837018,4.07254167,3717.0,3716.9,0.001]
[1753438837441,1.3822,3717.0,3716.9,0.001]
[1753438837758,4.07254167,3717.0,3716.9,0.001]
[1753438837998,7.07254167,3717.0,3716.9,0.001]
[1753438842972,3.9358,3717.0,3716.9,0.001]
[1753438843162,10.97614167,3717.0,3716.9,0.001]
[1753438843557,8.2858,3717.0,3716.9,0.001]
[1753438843744,4.35,3717.0,3716.9,0.001]
[1753438843947,0.1344,3717.1,3716.9,0.001]
[1753438844179,4.35,3717.0,3716.9,0.001]
[1753438844347,0.1344,3717.1,3716.9,0.001]
[1753438844548,4.349,3717.0,3716.9,0.001]
[1753438845175,4.349,3717.0,3716.9,2.69139119]
[1753438845352,0.1344,3717.3,3716.9,0.001]
[1753438845566,4.349,3717.2,3717.0,2.69029428]
[1753438845761,0.1344,3717.3,3717.0,2.69034167]
[1753438846188,0.1344,3717.3,3716.9,0.001]
[1753438846388,0.9358,3717.2,3716.9,0.001]
[1753438846590,1.2443,3717.0,3716.9,0.001]
[1753438846757,1.3787,3717.0,3716.9,0.001]
[1753438847157,5.45124167,3717.0,3716.9,0.001]
[1753438847394,2.7609,3717.0,3716.9,0.001]
[1753438847691,5.45124167,3717.0,3716.9,0.001]
[1753438847895,8.45124167,3717.0,3716.9,0.001]
[1753438849576,12.79824167,3717.0,3716.9,0.001]
[1753438853020,13.34824167,3717.0,3716.9,0.001]
[1753438856526,8.45124167,3717.0,3716.9,0.001]
[1753438856699,10.16774167,3717.0,3716.9,0.001]
[1753438857492,11.10354167,3717.0,3716.9,0.001]
[1753438858513,11.54994167,3717.0,3716.9,0.001]
[1753438858922,11.10354167,3717.0,3716.9,0.001]
[1753438860212,11.54994167,3717.0,3716.9,0.001]
[1753438860730,11.10354167,3717.0,3716.9,0.001]
[1753438862134,11.54994167,3717.0,3716.9,0.001]
[1753438865530,3.1344,3717.0,3716.9,0.001]
[1753438865700,7.4724,3717.0,3716.9,0.001]
[1753438867030,10.16274167,3717.0,3716.9,0.001]
[1753438867335,11.06804167,3717.0,3716.9,0.001]
[1753438867928,10.16274167,3717.0,3716.9,0.001]
[1753438868148,7.4724,3717.0,3716.9,0.001]
[1753438868648,11.06804167,3717.0,3716.9,0.001]
[1753438870226,8.3747,3717.0,3716.9,0.001]
[1753438870747,10.15974167,3717.0,3716.9,0.001]
[1753438871118,11.06504167,3717.0,3716.9,0.001]
[1753438871843,11.52814167,3717.0,3716.9,0.001]
[1753438872809,12.82724167,3717.0,3716.9,0.001]
[1753438874033,3.1344,3717.0,3716.9,0.001]
[1753438874349,7.4674,3717.0,3716.9,0.001]
[1753438875057,4.333,3717.0,3716.9,0.3012]
[1753438875238,7.333,3717.0,3716.9,0.001]
[1753438875546,0.002,3717.2,3716.9,0.001]
[1753438875750,4.332,3717.1,3716.9,0.001]
[1753438877052,4.332,3717.1,3716.9,2.69140401]
[1753438877346,4.331,3717.1,3716.9,0.3012]
[1753438877555,0.002,3717.2,3716.9,0.001]
[1753438877723,0.002,3717.2,3717.1,2.69026929]
[1753438877920,0.002,3717.2,3717.1,2.99046929]
[1753438878230,0.002,3717.2,3717.1,3.12486929]
[1753438878738,0.002,3717.2,3717.1,0.1344]
[1753438880724,0.9073,3717.2,3716.9,0.001]
[1753438881053,0.9053,3717.1,3716.9,0.001]
[1753438881350,0.002,3717.2,3716.9,0.001]
[1753438881555,0.002,3717.2,3716.9,0.1354]
[1753438881733,3.59561207,3717.1,3716.9,0.001]
[1753438881933,0.9053,3717.1,3716.9,0.001]
[1753438882252,0.002,3717.2,3716.9,0.001]
[1753438882428,0.9053,3717.0,3716.9,0.001]
[1753438882828,3.59564167,3717.0,3716.9,0.001]
[1753438883065,6.59564167,3717.0,3716.9,0.001]
[1753438883221,3.9053,3717.0,3716.9,0.001]
[1753438883426,6.59564167,3717.0,3716.9,0.001]
[1753438884153,5.69034167,3717.0,3716.9,0.001]
[1753438884358,3.9053,3717.0,3716.9,0.001]
[1753438884657,4.3684,3717.0,3716.9,0.001]
[1753438884863,3.1344,3717.1,3716.9,0.001]
[1753438885725,0.002,3717.2,3717.1,2.69026929]
[1753438885963,1e-08,3717.6,3717.5,3.95557982]
[1753438886148,0.002,3718.5,3717.8,3.90796276]
[1753438886353,0.002,3717.9,3717.8,8.53316276]
[1753438886537,0.002,3717.9,3717.8,10.07499179]
[1753438886945,0.002,3717.9,3717.8,5.74999179]
[1753438887146,0.002,3717.9,3717.8,1.2182]
[1753438887350,0.9073,3717.9,3717.6,0.1344]
[1753438887741,0.002,3717.9,3717.7,2.68977797]
[1753438887945,0.9073,3717.9,3717.5,1.2182]
[1753438888264,0.1364,3717.9,3717.7,2.68977302]
[1753438888467,0.1364,3717.9,3717.5,1.2182]
[1753438888768,0.1364,3717.9,3717.6,2.68984396]
[1753438889463,0.002,3717.9,3717.8,2.68976276]
[1753438890346,0.002,3717.9,3717.8,2.94082193]
[1753438890951,0.002,3717.9,3717.8,0.25105917]
[1753438891148,0.002,3717.9,3717.8,2.94082193]
[1753438893078,0.002,3717.9,3717.8,0.25105917]
[1753438893467,0.9073,3717.9,3717.8,0.25105917]
[1753438893998,1.3704,3717.9,3717.8,2.94082193]
[1753438894349,0.9073,3717.9,3717.8,2.94082193]
[1753438896782,0.9073,3717.9,3717.8,0.25105917]
[1753438896982,0.9073,3717.9,3717.8,2.94082193]
[1753438897281,0.9073,3717.9,3717.8,0.25105917]
[1753438897646,0.9073,3717.9,3717.8,2.94082193]
[1753438897846,0.9073,3717.9,3717.8,0.25105917]
[1753438898123,0.9073,3717.9,3717.8,2.94082193]
[1753438898285,0.002,3717.9,3717.8,2.94082193]
[1753438899625,0.002,3717.9,3717.8,0.25105917]
[1753438900040,0.948,3717.9,3717.8,0.25105917]
[1753438900326,0.948,3717.9,3717.8,2.94082193]
[1753438900494,0.002,3717.9,3717.8,2.94082193]
[1753438901415,0.948,3717.9,3717.8,2.94082193]
[1753438902332,0.948,3717.9,3717.8,0.25105917]
[1753438902529,0.948,3717.9,3717.8,2.94082193]
[1753438902731,0.002,3717.9,3717.8,2.94082193]
[1753438903046,0.948,3717.9,3717.8,0.25105917]
[1753438903339,0.948,3717.9,3717.8,2.94061358]
[1753438903539,0.002,3717.9,3717.8,0.25085082]
[1753438903838,0.002,3717.9,3717.8,2.94061358]
[1753438905146,0.002,3717.9,3717.8,2.94063131]
[1753438906144,0.948,3717.9,3717.8,2.94063131]
[1753438906821,0.002,3717.9,3717.8,2.94063131]
[1753438907248,0.948,3717.9,3717.8,2.94063131]
[1753438907846,0.948,3717.9,3717.8,0.25086855]
[1753438908138,0.948,3717.9,3717.8,2.94063131]
[1753438908643,0.002,3717.9,3717.8,2.94063131]
[1753438908943,0.002,3717.9,3717.8,4.07044309]
[1753438910025,0.948,3717.9,3717.8,2.94063131]
[1753438912326,0.948,3717.9,3717.8,2.94093838]
[1753438912953,0.002,3717.9,3717.8,2.94093838]
[1753438913154,0.948,3717.9,3717.8,2.94093838]
[1753438913657,0.002,3717.9,3717.8,2.967836]
[1753438913963,0.002,3717.9,3717.8,6.24450444]
[1753438914133,0.002,3717.9,3717.8,9.67540682]
[1753438915262,1.4048,3717.9,3717.8,0.38557562]
[1753438915459,1.4048,3717.9,3717.8,0.25117562]
[1753438916643,1.4048,3717.9,3717.8,4.55817562]
[1753438917768,0.948,3717.9,3717.8,4.55817562]
[1753438917930,0.948,3717.9,3717.8,7.24793838]
[1753438918632,0.002,3717.9,3717.8,7.24793838]
[1753438918834,0.002,3717.9,3717.8,8.25516228]
[1753438919060,0.948,3717.9,3717.8,8.25516228]
[1753438920766,0.002,3717.9,3717.8,8.25516228]
[1753438921767,0.948,3717.9,3717.8,8.25516228]
[1753438922350,0.002,3717.9,3717.8,9.46356228]
[1753438922937,0.002,3717.9,3717.8,9.46406336]
[1753438924633,0.002,3717.9,3717.8,9.75926336]
[1753438925561,0.002,3717.9,3717.8,9.45906336]
[1753438926473,0.002,3717.9,3717.8,9.75926336]
[1753438927559,0.002,3717.9,3717.8,10.30926336]
[1753438931450,0.002,3718.2,3717.9,3.23969041]
[1753438931658,0.002,3718.2,3717.9,6.49612028]
[1753438931844,0.002,3718.2,3717.9,6.16902338]
[1753438932347,0.8896,3718.2,3717.9,6.16902338]
[1753438935178,0.002,3718.2,3717.9,6.16902338]
[1753438935693,1e-08,3718.0,3717.9,6.46922338]
[1753438935979,1e-08,3718.0,3717.9,6.16902338]
[1753438937690,1e-08,3718.0,3717.9,10.46502338]
[1753438937999,0.88760001,3718.0,3717.9,10.46502338]
[1753438938302,1e-08,3718.0,3717.9,10.46302338]
[1753438939082,1e-08,3718.2,3718.1,10.81087618]
[1753438939285,1e-08,3718.2,3718.1,17.71315943]
[1753438939585,1e-08,3718.2,3718.1,18.14775943]
[1753438940152,1e-08,3718.2,3718.1,11.59382898]
[1753438940348,1e-08,3718.2,3718.1,11.59333751]
[1753438940950,1e-08,3718.2,3718.1,11.89353751]
[1753438941758,1e-08,3718.2,3718.1,11.59333751]
[1753438941952,1e-08,3718.2,3718.1,11.59133751]
[1753438942464,1e-08,3718.2,3718.1,11.89153751]
[1753438942664,1e-08,3718.2,3718.1,11.59133751]
[1753438943566,1e-08,3718.2,3718.1,11.89147663]
[1753438944475,1e-08,3718.2,3718.1,11.59127663]
[1753438944661,1e-08,3718.2,3718.1,11.89147663]
[1753438945979,1e-08,3718.2,3718.1,11.59127663]
[1753438946182,1e-08,3718.2,3718.1,11.89147663]
[1753438946381,1e-08,3718.2,3718.1,18.14520708]
[1753438947152,0.002,3718.8,3718.6,2.6891841]
[1753438947373,0.002,3718.8,3718.7,7.52504565]
[1753438947572,0.002,3718.8,3718.7,7.63255454]
[1753438947777,0.8896,3718.8,3718.7,7.63255454]
[1753438948481,0.002,3718.9,3718.8,2.68903947]
[1753438948665,0.8896,3719.2,3719.1,2.68882256]
[1753438948855,0.002,3719.2,3719.1,8.11742501]
[1753438949082,0.002,3719.2,3719.1,8.25182501]
[1753438949579,0.002,3719.2,3719.1,9.46842501]
[1753438950280,0.002,3719.2,3719.1,9.46742501]
[1753438950658,0.8876,3719.7,3719.6,2.68846112]
[1753438950860,0.8876,3719.7,3719.6,7.89868607]
[1753438951188,1.343,3719.7,3719.6,7.89868607]
[1753438951653,1.2833,3720.7,3720.1,2.68807088]
[1753438951857,1.343,3720.6,3720.2,4.53712435]
[1753438952053,1.2157,3720.4,3720.3,4.53706634]
[1753438952276,2.5587,3720.4,3720.3,0.25106634]
[1753438952511,2.5587,3720.4,3718.8,0.55]
[1753438952512,1.2823,3720.1,3718.3,1.2101]
[1753438952683,1.2823,3719.9,3719.2,0.1344]
[1753438952994,1.343,3719.8,3719.5,0.1344]
[1753438953195,1.343,3719.8,3719.6,6.97444801]
[1753438953400,0.4554,3719.7,3719.6,4.286]
[1753438953571,0.4554,3719.7,3719.6,6.97446112]
[1753438953890,1.2823,3720.3,3719.9,2.68818286]
[1753438954063,1.2823,3720.3,3720.0,6.97317062]
[1753438954381,0.4554,3720.2,3720.0,6.97317062]
[1753438954583,0.4554,3720.1,3720.0,6.97312876]
[1753438954776,0.4554,3720.1,3720.0,2.68812876]
[1753438954971,1.343,3720.1,3720.0,6.97312876]
[1753438956692,1.343,3720.1,3720.0,2.68812876]
[1753438956884,1.343,3720.1,3720.0,4.284]
[1753438957086,1.2076,3720.0,3718.7,1.2617]
[1753438957291,1.2076,3719.9,3719.3,2.68862064]
[1753438957470,0.1344,3719.7,3719.4,4.283]
[1753438957664,1.6754,3719.6,3719.5,4.283]
[1753438957870,2.5314,3719.6,3719.5,4.283]
[1753438958987,2.5314,3719.6,3719.2,0.1344]
[1753438959162,2.6658,3719.5,3719.3,4.282]
[1753438959356,1.3238,3719.4,3719.3,4.282]
[1753438960559,1.3104,3719.3,3718.0,6.456]
[1753438960786,1.4582,3719.2,3718.7,0.1344]
[1753438960968,1.3104,3718.8,3718.6,4.282]
[1753438961164,4.01293043,3718.7,3718.4,0.1344]
[1753438961387,1.267,3718.6,3718.0,0.1344]
[1753438961568,0.1344,3718.2,3718.0,4.281]
[1753438961771,0.856,3718.1,3718.0,6.97061807]
[1753438961960,0.856,3718.4,3718.1,0.96603647]
[1753438962167,0.4678,3718.4,3718.3,2.68940107]
[1753438962384,0.4678,3718.4,3718.3,6.97040107]
[1753438962594,0.4678,3718.9,3718.3,4.281]
[1753438962762,0.856,3718.6,3718.5,2.68925642]
[1753438963098,1.3238,3718.6,3718.3,4.281]
[1753438963289,1.2372,3718.5,3718.4,2.68930426]
[1753438963587,2.561,3718.5,3718.4,2.68930426]
[1753438964295,2.561,3718.5,3718.4,4.281]
[1753438964592,2.561,3718.5,3718.4,7.22181767]
[1753438964789,2.561,3718.5,3718.4,0.25148893]
[1753438965491,2.561,3718.5,3718.4,0.25152827]
[1753438965679,0.1344,3718.6,3718.4,0.25152827]
[1753438965882,1.3238,3718.5,3718.3,6.96934045]
[1753438966091,0.1344,3718.6,3718.4,0.25152088]
[1753438966289,0.1344,3718.6,3718.5,0.25152088]
[1753438966493,1.2112,3718.8,3718.5,2.9407773]